bitfinex/quotes_SOLUSD_20220117
["timestamp","ask_amount","ask_price","bid_price","bid_amount"]
[1642402548327,43.09883211,143.18,143.11,39.1648]
[1642402550453,45.03220526,143.18,143.11,39.1648]
[1642402552251,45.03220526,143.18,143.11,38.9148]
[1642402553251,1.93337315,143.17,143.11,38.9148]
[1642402553453,2.18337315,143.17,143.11,38.9148]
[1642402555152,2.18337315,143.17,143.11,39.1648]
[1642402556763,0.25,143.17,143.11,38.9148]
[1642402557054,45.03220526,143.18,143.11,39.1648]
[1642402557253,45.03220526,143.18,143.11,38.9148]
[1642402557454,45.03220526,143.18,143.11,39.1648]
[1642402559259,45.03220526,143.18,143.11,38.9148]
[1642402559856,45.03220526,143.18,143.11,39.1648]
[1642402560058,45.03220526,143.18,143.11,10.12]
[1642402560059,55.51420526,143.18,143.11,10.12]
[1642402560259,61.51420526,143.18,143.07,36.14261357]
[1642402560459,23.4891,143.17,143.07,36.14261357]
[1642402560857,29.7391,143.17,143.07,36.14261357]
[1642402561057,1.93337315,143.15,143.07,36.14261357]
[1642402561260,40.90918801,143.14,143.07,34.1587]
[1642402561459,65.95948801,143.14,143.07,34.4087]
[1642402562858,65.95948801,143.14,143.07,34.1587]
[1642402563259,65.95948801,143.14,143.07,34.4087]
[1642402564060,65.95948801,143.14,143.07,10.12]
[1642402567593,65.70948801,143.14,143.07,10.12]
[1642402567766,65.70948801,143.14,143.07,10.37]
[1642402568766,65.70948801,143.14,143.07,10.12]
[1642402568966,65.95948801,143.14,143.07,10.12]
[1642402569167,65.95948801,143.14,143.07,10.37]
[1642402570367,71.95948801,143.14,143.07,10.37]
[1642402572476,71.70948801,143.14,143.07,10.37]
[1642402572672,71.70948801,143.14,143.07,10.12]
[1642402573970,71.70948801,143.14,143.07,10.37]
[1642402573971,71.95948801,143.14,143.07,10.37]
[1642402578675,1.93337315,143.16,143.07,80.21]
[1642402578876,2.18337315,143.16,143.08,23.5822]
[1642402579075,2.18337315,143.16,143.09,10.12]
[1642402579275,2.18337315,143.16,143.1,23.2436]
[1642402579676,43.40878839,143.15,143.1,23.2436]
[1642402579876,43.65878839,143.15,143.1,23.2436]
[1642402580878,50.68678839,143.15,143.07,16.12]
[1642402581076,67.17108839,143.15,143.07,10.12]
[1642402581979,69.10446154,143.15,143.05,23.626]
[1642402582178,10.4872,143.12,143.05,23.876]
[1642402582379,16.7372,143.12,143.05,23.626]
[1642402582600,24.5982,143.12,143.05,23.626]
[1642402585505,24.5982,143.12,143.02,33.4104]
[1642402585705,10.4893,143.09,143.02,23.2904]
[1642402585906,10.7393,143.09,143.02,23.2904]
[1642402586104,17.6643,143.09,143.02,23.2904]
[1642402586505,45.04633652,143.08,143.02,23.2904]
[1642402586707,45.04633652,143.08,143.0,23.05]
[1642402586906,55.78613652,143.08,143.0,29.05]
[1642402587105,45.29633652,143.08,143.0,29.05]
[1642402587306,1.93337315,143.1,143.0,30.27125148]
[1642402587506,1.93337315,143.1,143.0,40.39125148]
[1642402587507,2.18337315,143.1,143.0,40.39125148]
[1642402587909,1.93337315,143.09,143.0,40.64125148]
[1642402588308,2.18337315,143.09,143.0,40.64125148]
[1642402588907,47.66655432,143.1,143.0,40.64125148]
[1642402589107,0.25,143.09,143.0,40.64125148]
[1642402589308,24.2203,143.09,143.0,40.64125148]
[1642402590108,10.4881,143.1,143.01,69.84]
[1642402590310,1.93337315,143.11,143.02,23.2028]
[1642402590512,1.93337315,143.11,143.02,24.42405148]
[1642402590710,2.18337315,143.11,143.02,24.67405148]
[1642402591111,35.78160254,143.1,143.02,23.4528]
[1642402591311,36.03160254,143.1,143.02,23.4528]
[1642402592415,36.03160254,143.1,143.02,23.2028]
[1642402592614,36.03160254,143.1,143.02,23.4528]
[1642402593414,36.03160254,143.1,143.02,23.2028]
[1642402593616,36.03160254,143.1,143.02,23.4528]
[1642402594015,36.03160254,143.1,143.02,23.2028]
[1642402594217,36.03160254,143.1,143.02,23.4528]
[1642402594617,0.25,143.1,143.03,7.18268797]
[1642402594819,1.93337315,143.12,143.04,23.4139]
[1642402595020,1.93337315,143.12,143.04,23.6639]
[1642402595219,1.93337315,143.12,143.04,29.6639]
[1642402595419,1.93337315,143.12,143.05,10.12]
[1642402595623,1.93337315,143.12,143.06,24.3804]
[1642402595821,1.93337315,143.12,143.06,34.5004]
[1642402596024,43.71083109,143.13,143.06,34.7504]
[1642402597322,1.93337315,143.15,143.06,34.7504]
[1642402597723,8.18337315,143.15,143.06,34.7504]
[1642402598123,2.18337315,143.15,143.06,34.7504]
[1642402598322,44.37415651,143.14,143.06,34.7504]
[1642402598722,44.62415651,143.14,143.06,34.7504]
[1642402599523,44.62415651,143.14,143.07,69.84]
[1642402599924,44.62415651,143.14,143.07,70.09]
[1642402600524,44.62415651,143.14,143.07,80.21]
[1642402601127,44.62415651,143.14,143.07,10.37]
[1642402604054,69.49035651,143.14,143.07,10.37]
[1642402605356,75.49035651,143.14,143.07,10.37]
[1642402605958,69.49035651,143.14,143.07,10.37]
[1642402606156,75.49035651,143.14,143.07,10.37]
[1642402606356,69.49035651,143.14,143.07,10.37]
[1642402606856,75.49035651,143.14,143.07,10.37]
[1642402607258,44.62415651,143.14,143.07,10.37]
[1642402607458,44.37415651,143.14,143.07,17.409]
[1642402608961,44.37415651,143.14,143.07,10.37]
[1642402611865,44.62415651,143.14,143.07,10.37]
[1642402617471,69.36345651,143.14,143.07,10.12]
[1642402617871,75.36345651,143.14,143.07,10.12]
[1642402618071,74.86345651,143.14,143.07,10.12]
[1642402618272,70.79682966,143.14,143.07,10.12]
[1642402618575,70.79682966,143.14,143.07,10.37]
[1642402618773,76.79682966,143.14,143.07,10.37]
[1642402619274,70.79682966,143.14,143.07,10.37]
[1642402620105,76.79682966,143.14,143.07,10.37]
[1642402620276,81.28192966,143.14,143.06,24.3804]
[1642402620475,87.28192966,143.14,143.06,24.3804]
[1642402621675,1.93337315,143.13,143.06,24.3804]
[1642402621875,2.18337315,143.13,143.06,24.6304]
[1642402623879,8.18337315,143.13,143.06,24.6304]
[1642402624079,2.18337315,143.13,143.06,24.6304]
[1642402626583,2.18337315,143.13,143.06,24.3804]
[1642402626783,2.18337315,143.13,143.06,24.6304]
[1642402627721,2.18337315,143.13,143.06,44.27911638]
[1642402627919,1.93337315,143.13,143.06,44.27911638]
[1642402628519,1.93337315,143.13,143.06,24.6304]
[1642402628719,1.93337315,143.13,143.06,24.3804]
[1642402628921,1.93337315,143.13,143.06,24.6304]
[1642402629120,1.93337315,143.13,143.06,24.3804]
[1642402629319,1.93337315,143.13,143.06,24.6304]
[1642402631020,70.54682966,143.14,143.06,24.6304]
[1642402631219,70.79682966,143.14,143.06,24.6304]
[1642402632323,70.54682966,143.14,143.06,24.6304]
[1642402632523,70.54682966,143.14,143.06,25.85165148]
[1642402632723,70.79682966,143.14,143.06,25.85165148]
[1642402632924,70.79682966,143.14,143.06,24.6304]
[1642402633825,1.93337315,143.13,143.06,24.6304]
[1642402635325,70.79682966,143.14,143.06,24.6304]
[1642402637124,70.54682966,143.14,143.06,24.6304]
[1642402637325,70.54682966,143.14,143.07,9.4740888]
[1642402637326,1.93337315,143.14,143.07,9.4740888]
[1642402637725,1.93337315,143.14,143.08,24.9848]
[1642402637935,1.93337315,143.14,143.08,25.2348]
[1642402638729,1.93337315,143.15,143.08,25.2348]
[1642402638930,8.18337315,143.15,143.08,25.2348]
[1642402639533,41.75038893,143.14,143.08,25.2348]
[1642402641028,43.68376208,143.14,143.08,25.2348]
[1642402641230,43.93376208,143.14,143.08,25.2348]
[1642402643630,43.93376208,143.14,143.08,24.9848]
[1642402645133,49.93376208,143.14,143.08,24.9848]
[1642402645334,43.93376208,143.14,143.08,24.9848]
[1642402647035,43.93376208,143.14,143.05,79.96]
[1642402647237,67.68726208,143.14,143.06,23.2838]
[1642402647537,1.93337315,143.13,143.06,33.6538]
[1642402654240,1.93337315,143.13,143.06,41.94861832]
[1642402655746,1.93337315,143.13,143.07,69.84]
[1642402655947,1.93337315,143.13,143.07,70.09]
[1642402656147,25.68687315,143.14,143.07,70.09]
[1642402656347,1.93337315,143.14,143.07,70.09]
[1642402656948,1.93337315,143.14,143.08,24.3346]
[1642402657347,1.93337315,143.14,143.08,24.5846]
[1642402658848,36.71470824,143.15,143.08,24.5846]
[1642402659052,36.71470824,143.15,143.08,30.5846]
[1642402659550,36.71470824,143.15,143.08,24.5846]
[1642402660654,36.71470824,143.15,143.08,24.3346]
[1642402660854,36.96470824,143.15,143.08,24.3346]
[1642402661870,36.96470824,143.15,143.08,30.3346]
[1642402662070,36.71470824,143.15,143.08,30.5846]
[1642402662271,36.71470824,143.15,143.08,24.5846]
[1642402662670,36.71470824,143.15,143.08,104.5446]
[1642402663771,36.71470824,143.15,143.08,110.5446]
[1642402664374,36.71470824,143.15,143.08,104.5446]
[1642402664972,36.71470824,143.15,143.08,110.5446]
[1642402665376,36.71470824,143.15,143.08,104.5446]
[1642402666873,36.71470824,143.15,143.08,110.5446]
[1642402667273,36.71470824,143.15,143.08,104.5446]
[1642402668073,36.71470824,143.15,143.08,110.5446]
[1642402668573,36.71470824,143.15,143.08,24.5846]
[1642402668774,36.96470824,143.15,143.08,30.5846]
[1642402668973,36.96470824,143.15,143.08,24.5846]
[1642402670378,42.96470824,143.15,143.08,24.5846]
[1642402670576,36.96470824,143.15,143.08,24.5846]
[1642402672076,1.93337315,143.14,143.08,24.5846]
[1642402672477,2.18337315,143.14,143.08,24.5846]
[1642402680790,8.18337315,143.14,143.08,24.5846]
[1642402680991,2.18337315,143.14,143.08,24.5846]
[1642402681190,1.93337315,143.13,143.03,12.10391357]
[1642402681388,2.18337315,143.13,143.04,24.9033]
[1642402681889,8.18337315,143.13,143.04,24.9033]
[1642402682090,44.3724418,143.11,143.04,24.9033]
[1642402682489,44.3724418,143.11,143.04,25.1533]
[1642402685291,44.3724418,143.11,143.04,94.9933]
[1642402686096,44.3724418,143.11,143.04,25.1533]
[1642402686291,50.7874418,143.11,143.04,25.1533]
[1642402689097,44.3724418,143.11,143.04,25.1533]
[1642402703637,44.3724418,143.11,143.04,31.1533]
[1642402706039,44.3724418,143.11,143.04,25.1533]
[1642402706641,46.30581495,143.11,143.04,25.1533]
[1642402708340,52.30581495,143.11,143.04,25.1533]
[1642402708539,46.30581495,143.11,143.04,25.1533]
[1642402708945,46.30581495,143.11,143.04,34.34892268]
[1642402711444,46.30581495,143.11,143.04,25.1533]
[1642402713651,1.93337315,143.11,143.04,25.1533]
[1642402713878,1.93337315,143.11,143.04,105.1133]
[1642402714952,1.93337315,143.12,143.04,105.1133]
[1642402715453,1.93337315,143.12,143.04,115.5969]
[1642402715853,1.93337315,143.12,143.04,122.82119643]
[1642402716452,1.93337315,143.13,143.04,124.80511]
[1642402716659,48.74330842,143.13,143.04,124.80511]
[1642402717254,46.80993527,143.13,143.04,124.80511]
[1642402717957,46.80993527,143.13,143.04,123.58081357]
[1642402718156,48.74330842,143.13,143.04,121.5969]
[1642402719260,48.74330842,143.13,143.04,122.82119643]
[1642402721162,48.74330842,143.13,143.04,46.98119643]
[1642402721394,54.99330842,143.13,143.04,35.2733]
[1642402721889,23.6576,143.12,143.04,35.2733]
[1642402722287,25.84097315,143.12,143.04,35.2733]
[1642402722487,31.84097315,143.12,143.04,35.0233]
[1642402722688,36.32727315,143.12,143.04,24.9033]
[1642402722888,42.32727315,143.12,143.04,24.9033]
[1642402723189,1.93337315,143.11,143.04,24.9033]
[1642402723389,43.30196142,143.1,143.04,24.9033]
[1642402723789,49.30196142,143.1,143.04,25.1533]
[1642402724192,49.30196142,143.1,143.04,24.9033]
[1642402724492,49.55196142,143.1,143.04,24.9033]
[1642402724690,43.55196142,143.1,143.04,24.9033]
[1642402725193,45.48533457,143.1,143.04,24.9033]
[1642402725689,51.48533457,143.1,143.04,24.9033]
[1642402728292,61.97293457,143.1,143.04,24.9033]
[1642402729697,60.03956142,143.1,143.04,24.9033]
[1642402730294,54.03956142,143.1,143.04,24.9033]
[1642402730495,60.03956142,143.1,143.04,24.9033]
[1642402732302,60.03956142,143.1,143.0,12.10391357]
[1642402732599,10.4891,143.08,143.0,36.87851357]
[1642402732797,47.6441981,143.07,143.0,42.87851357]
[1642402733204,47.6441981,143.07,143.0,40.8946]
[1642402733997,47.6441981,143.07,143.0,41.1446]
[1642402736101,47.6441981,143.07,143.0,40.8946]
[1642402737406,47.6441981,143.07,143.0,41.1446]
[1642402737806,47.6441981,143.07,143.01,13.16875766]
[1642402738203,47.6441981,143.07,143.01,13.41875766]
[1642402738605,0.25,143.08,143.01,13.41875766]
[1642402738805,30.1253,143.09,143.02,23.4977]
[1642402739206,30.1253,143.09,143.02,23.7477]
[1642402739810,38.36523164,143.08,143.02,23.7477]
[1642402740211,44.36523164,143.08,143.02,23.7477]
[1642402743010,44.61523164,143.08,143.02,23.4977]
[1642402743210,44.36523164,143.08,143.02,23.7477]
[1642402746813,6.0,143.08,143.02,23.7477]
[1642402747415,29.8753,143.09,143.02,23.7477]
[1642402747920,30.1253,143.09,143.02,42.31337316]
[1642402748817,30.1253,143.09,143.02,23.7477]
[1642402749218,40.6136,143.09,143.02,23.7477]
[1642402749422,40.6136,143.09,143.0,6.0]
[1642402749620,40.6136,143.09,142.99,75.84]
[1642402749819,40.6136,143.09,142.99,85.96]
[1642402750320,40.6136,143.09,142.99,109.9181]
[1642402750822,40.6136,143.09,142.99,110.1681]
[1642402752224,36.69403269,143.07,142.99,110.1681]
[1642402754827,36.94403269,143.07,142.99,110.1681]
[1642402755028,43.67303269,143.07,142.99,110.1681]
[1642402755448,43.67303269,143.07,142.99,34.3281]
[1642402756050,49.67303269,143.07,142.99,34.3281]
[1642402756250,43.67303269,143.07,142.99,34.3281]
[1642402757057,49.67303269,143.07,142.99,34.3281]
[1642402757454,54.16283269,143.07,142.99,34.3281]
[1642402757752,60.16283269,143.07,142.99,34.3281]
[1642402757953,54.16283269,143.07,142.99,34.3281]
[1642402758352,60.16283269,143.07,142.99,34.3281]
[1642402758551,54.16283269,143.07,142.99,34.3281]
[1642402761255,54.16283269,143.07,142.99,24.2081]
[1642402761856,53.91283269,143.07,142.99,24.2081]
[1642402762755,47.18383269,143.07,142.99,24.2081]
[1642402764556,47.18383269,143.07,143.0,6.55885204]
[1642402764757,1.93337315,143.08,143.0,6.55885204]
[1642402764957,1.93337315,143.08,143.01,23.8664]
[1642402765157,7.93337315,143.08,143.01,23.8664]
[1642402765356,7.93337315,143.08,143.01,24.1164]
[1642402765556,6.0,143.08,143.01,24.1164]
[1642402765961,1.93337315,143.09,143.01,24.1164]
[1642402766157,1.93337315,143.09,143.01,42.53319896]
[1642402767858,37.7927143,143.1,143.01,44.51711253]
[1642402768060,37.7927143,143.1,143.02,10.12]
[1642402768260,43.7927143,143.1,143.02,10.12]
[1642402768463,43.7927143,143.1,143.02,11.59885764]
[1642402768661,43.7927143,143.1,143.03,24.9075]
[1642402768861,37.7927143,143.1,143.03,25.1575]
[1642402769861,43.7927143,143.1,143.03,25.1575]
[1642402770863,43.7927143,143.1,143.03,31.1575]
[1642402771763,37.7927143,143.1,143.03,31.1575]
[1642402772365,43.7927143,143.1,143.03,31.1575]
[1642402774771,37.7927143,143.1,143.03,31.1575]
[1642402775374,43.7927143,143.1,143.03,31.1575]
[1642402776275,44.0427143,143.1,143.03,31.1575]
[1642402777277,38.0427143,143.1,143.03,31.1575]
[1642402777479,43.7927143,143.1,143.03,31.1575]
[1642402777686,37.7927143,143.1,143.03,31.1575]
[1642402780382,37.7927143,143.1,143.03,30.9075]
[1642402780581,37.7927143,143.1,143.03,31.1575]
[1642402780783,37.7927143,143.1,143.03,25.1575]
[1642402783510,12.41997315,143.12,143.03,25.1575]
[1642402783710,1.93337315,143.12,143.03,25.1575]
[1642402784016,1.93337315,143.12,143.04,10.12]
[1642402784209,1.93337315,143.12,143.05,23.8529]
[1642402784411,1.93337315,143.12,143.05,24.1029]
[1642402784609,40.36447855,143.12,143.05,24.1029]
[1642402785309,38.4311054,143.12,143.05,24.1029]
[1642402789614,58.47807315,143.14,143.05,24.1029]
[1642402789916,1.93337315,143.14,143.06,10.12]
[1642402790117,1.93337315,143.13,143.07,23.6305]
[1642402790515,1.93337315,143.13,143.07,23.8805]
[1642402791117,44.08248687,143.14,143.07,23.8805]
[1642402791915,44.33248687,143.14,143.07,23.8805]
[1642402792116,68.75858687,143.14,143.07,23.8805]
[1642402793618,1.93337315,143.13,143.07,23.8805]
[1642402794020,2.18337315,143.13,143.07,23.8805]
[1642402795122,1.93337315,143.13,143.07,23.8805]
[1642402796923,68.50858687,143.14,143.07,23.8805]
[1642402796924,70.44196002,143.14,143.07,23.8805]
[1642402797325,70.69196002,143.14,143.07,0.25]
[1642402797826,76.69196002,143.14,143.04,16.12]
[1642402798031,76.69196002,143.14,143.04,16.37]
[1642402798425,87.17706002,143.14,143.05,24.1465]
[1642402798830,87.17706002,143.14,143.05,24.3965]
[1642402799227,1.93337315,143.13,143.05,24.3965]
[1642402799425,2.18337315,143.13,143.05,24.3965]
[1642402799924,1.93337315,143.12,143.05,24.3965]
[1642402802728,2.18337315,143.12,143.05,24.3965]
[1642402804028,18.66997315,143.12,143.05,24.1465]
[1642402804233,1.93337315,143.11,143.02,22.551]
[1642402804538,32.24077315,143.11,143.02,34.2756]
[1642402805332,32.24077315,143.11,143.02,34.5256]
[1642402805533,1.93337315,143.1,143.02,34.5256]
[1642402805734,39.46898811,143.09,143.02,34.2756]
[1642402806935,39.71898811,143.09,143.02,34.2756]
[1642402807959,39.71898811,143.09,143.02,34.5256]
[1642402810862,39.46898811,143.09,143.02,34.5256]
[1642402811067,39.71898811,143.09,143.02,34.5256]
[1642402812665,45.71898811,143.09,143.02,34.5256]
[1642402813166,39.71898811,143.09,143.02,34.5256]
[1642402813367,45.71898811,143.09,143.02,34.5256]
[1642402813966,39.46898811,143.09,143.02,34.5256]
[1642402819179,39.46898811,143.09,143.02,34.2756]
[1642402820284,39.46898811,143.09,143.02,34.5256]
[1642402821582,39.46898811,143.09,143.02,34.2756]
[1642402821783,39.71898811,143.09,143.02,34.2756]
[1642402821982,45.71898811,143.09,143.02,34.2756]
[1642402822384,47.65236126,143.09,143.02,34.2756]
[1642402822785,47.65236126,143.09,143.02,10.12]
[1642402822983,58.14106126,143.09,143.02,10.12]
[1642402823584,58.14106126,143.09,142.99,33.8964]
[1642402823585,65.73506126,143.09,142.99,33.8964]
[1642402823782,22.5955,143.08,142.99,33.8964]
[1642402823982,10.4911,143.06,142.99,34.1464]
[1642402824183,17.1121,143.06,142.99,34.1464]
[1642402824482,17.3621,143.06,142.99,34.1464]
[1642402824682,17.3621,143.06,142.99,33.8964]
[1642402824882,23.3621,143.06,142.99,33.8964]
[1642402825991,25.29547315,143.06,142.99,33.8964]
[1642402827191,18.67447315,143.06,142.99,23.7764]
[1642402832298,16.7411,143.06,142.99,23.7764]
[1642402834424,16.7411,143.06,142.96,10.12]
[1642402834627,58.81519037,143.04,142.96,10.12]
[1642402834829,59.06519037,143.04,142.96,10.12]
[1642402835024,65.06519037,143.04,142.96,10.12]
[1642402835623,59.06519037,143.04,142.96,10.12]
[1642402835824,59.06519037,143.04,142.96,10.37]
[1642402836626,58.81519037,143.04,142.97,22.7139]
[1642402836827,22.5847,143.05,142.98,17.255364]
[1642402837228,22.5847,143.05,142.97,22.7139]
[1642402837826,22.5847,143.05,142.98,10.12]
[1642402838025,22.5847,143.05,142.98,9.62]
[1642402838228,43.3393862,143.04,142.98,9.62]
[1642402839629,22.8347,143.05,142.98,9.62]
[1642402839830,22.5847,143.05,142.98,9.87]
[1642402840630,60.62964608,143.05,142.98,9.87]
[1642402841731,60.87964608,143.05,142.98,9.87]
[1642402843634,60.87964608,143.05,142.98,9.62]
[1642402843832,60.87964608,143.05,142.98,9.87]
[1642402844236,66.87964608,143.05,142.98,9.87]
[1642402846541,66.87964608,143.05,142.98,9.62]
[1642402846742,77.37164608,143.05,142.98,9.62]
[1642402850742,79.30501923,143.05,142.98,9.62]
[1642402851647,77.37164608,143.05,142.98,9.62]
[1642402852670,79.30501923,143.05,142.98,9.62]
[1642402853246,62.81301923,143.05,142.98,9.62]
[1642402854749,1.93337315,143.04,142.98,9.62]
[1642402854947,2.18337315,143.04,142.98,9.62]
[1642402855349,1.93337315,143.04,142.98,9.87]
[1642402856848,2.18337315,143.04,142.98,9.87]
[1642402857048,1.93337315,143.04,142.98,9.87]
[1642402858451,62.56301923,143.05,142.98,9.87]
[1642402858850,68.81301923,143.05,142.98,9.87]
[1642402860181,62.81301923,143.05,142.98,9.87]
[1642402860384,68.81301923,143.05,142.98,9.87]
[1642402860581,62.81301923,143.05,142.98,9.87]
[1642402860783,68.81301923,143.05,142.98,9.87]
[1642402861385,62.81301923,143.05,142.98,9.87]
[1642402861584,68.81301923,143.05,142.98,9.87]
[1642402861783,62.81301923,143.05,142.98,9.87]
[1642402862287,1.93337315,143.04,142.98,9.87]
[1642402863086,40.22831923,143.05,142.98,9.87]
[1642402863387,46.22831923,143.05,142.98,9.87]
[1642402863592,45.97831923,143.05,142.98,9.87]
[1642402864590,39.97831923,143.05,142.98,9.87]
[1642402867697,46.22831923,143.05,142.98,9.87]
[1642402867895,40.22831923,143.05,142.98,9.87]
[1642402868295,46.22831923,143.05,142.98,9.87]
[1642402868893,46.22831923,143.05,142.98,24.36358457]
[1642402869093,40.22831923,143.05,142.98,24.36358457]
[1642402869694,46.22831923,143.05,142.98,24.36358457]
[1642402870696,1.93337315,143.04,142.98,24.36358457]
[1642402872394,24.062,143.07,142.98,24.36358457]
[1642402872395,1.93337315,143.05,142.98,24.36358457]
[1642402872599,1.93337315,143.05,142.99,22.8303]
[1642402872794,1.93337315,143.05,142.99,102.8503]
[1642402872997,1.93337315,143.05,142.99,103.1003]
[1642402873395,1.93337315,143.06,142.99,103.1003]
[1642402873597,3.81147421,143.09,143.0,72.0]
[1642402873895,3.81147421,143.09,143.01,21.95071909]
[1642402874095,3.81147421,143.09,143.01,46.28461909]
[1642402874295,3.81147421,143.09,143.01,52.53461909]
[1642402874695,43.12832921,143.11,143.02,69.9]
[1642402874896,43.12832921,143.11,143.03,10.12]
[1642402875101,43.12832921,143.11,143.04,80.3838]
[1642402875297,43.12832921,143.11,143.04,122.8922]
[1642402875498,43.12832921,143.11,143.04,123.1422]
[1642402876301,3.81147421,143.11,143.04,123.1422]
[1642402876500,10.4847,143.15,143.04,123.1422]
[1642402876700,6.25,143.14,143.04,123.1422]
[1642402876899,0.25,143.14,143.04,123.1422]
[1642402877305,44.234225,143.14,143.04,123.1422]
[1642402877504,50.234225,143.14,143.04,123.1422]
[1642402879802,50.234225,143.14,143.04,122.8922]
[1642402880206,75.216025,143.14,143.04,122.8922]
[1642402881402,75.216025,143.14,143.04,123.1422]
[1642402885308,74.966025,143.14,143.04,123.1422]
[1642402885506,27.00447421,143.17,143.04,123.1422]
[1642402885507,37.48767421,143.17,143.04,123.1422]
[1642402885708,61.41447421,143.17,143.04,134.97291909]
[1642402885906,61.41447421,143.17,143.04,140.97291909]
[1642402886508,40.03905194,143.16,143.04,140.97291909]
[1642402887009,46.28905194,143.16,143.04,140.97291909]
[1642402889711,24.5247,143.15,143.04,140.97291909]
[1642402889908,24.7747,143.15,143.04,140.97291909]
[1642402890710,24.5247,143.15,143.04,140.97291909]
[1642402890910,46.03905194,143.16,143.04,140.97291909]
[1642402891110,46.28905194,143.16,143.04,140.97291909]
[1642402892011,46.28905194,143.16,143.04,151.66141909]
[1642402893119,40.28905194,143.16,143.04,151.66141909]
[1642402894941,23.0525,143.15,143.04,151.66141909]
[1642402895743,23.0525,143.15,143.04,140.97291909]
[1642402915570,26.86397421,143.15,143.04,140.97291909]
[1642402918473,23.0525,143.15,143.04,140.97291909]
[1642402919072,23.0525,143.15,143.04,133.44491909]
[1642402928880,22.5525,143.15,143.04,133.44491909]
[1642402931084,22.5525,143.15,143.04,260.00491909]
[1642402931488,3.81147421,143.17,143.04,152.86222611]
[1642402931690,3.81147421,143.17,143.11,10.4781]
[1642402931888,3.81147421,143.17,143.12,80.02]
[1642402932287,3.81147421,143.17,143.12,86.27]
[1642402932587,3.81147421,143.17,143.12,100.89182897]
[1642402932988,40.04080572,143.2,143.12,86.27]
[1642402933189,63.25150572,143.2,143.13,24.5842]
[1642402933388,40.04080572,143.2,143.14,10.12]
[1642402933788,40.04080572,143.2,143.14,10.37]
[1642402936417,22.5791,143.23,143.14,80.27]
[1642402936617,22.5791,143.23,143.15,24.7934]
[1642402936822,22.5791,143.23,143.16,10.12]
[1642402937217,22.5791,143.23,143.16,16.37]
[1642402937419,65.46748851,143.23,143.16,16.37]
[1642402938419,65.46748851,143.23,143.16,26.8447]
[1642402939022,65.46748851,143.23,143.16,34.87624882]
[1642402939223,65.46748851,143.23,143.16,104.77624882]
[1642402939426,22.5791,143.23,143.16,104.77624882]
[1642402940426,62.19463932,143.23,143.16,104.77624882]
[1642402940826,22.5791,143.23,143.16,104.77624882]
[1642402941023,22.5791,143.23,143.16,110.86524882]
[1642402942027,40.75084696,143.26,143.16,110.86524882]
[1642402942224,65.73424696,143.26,143.17,24.7866]
[1642402942425,65.73424696,143.26,143.18,20.5932]
[1642402942925,65.73424696,143.26,143.18,20.8432]
[1642402943325,65.73424696,143.26,143.19,24.2555]
[1642402943525,65.73424696,143.26,143.2,10.12]
[1642402944028,65.73424696,143.26,143.2,10.37]
[1642402946929,24.9834,143.26,143.2,80.27]
[1642402947832,1.30731563,143.29,143.2,80.27]
[1642402948129,63.41708428,143.29,143.21,66.76948999]
[1642402948329,63.41708428,143.29,143.22,10.12]
[1642402948730,63.41708428,143.29,143.22,10.37]
[1642402952838,37.04607421,143.32,143.22,10.37]
[1642402953038,3.81147421,143.32,143.22,18.243]
[1642402953238,3.81147421,143.32,143.22,150.803]
[1642402953436,3.81147421,143.32,143.23,11.83071909]
[1642402953636,5.85701697,143.35,143.23,11.83071909]
[1642402953637,3.81147421,143.3,143.24,80.02]
[1642402953836,3.81147421,143.3,143.25,22.659]
[1642402954037,3.81147421,143.3,143.26,10.12]
[1642402954236,3.81147421,143.3,143.26,80.02]
[1642402954436,3.81147421,143.3,143.26,80.27]
[1642402954636,3.81147421,143.3,143.26,86.27]
[1642402954837,3.81147421,143.3,143.26,80.27]
[1642402955239,49.31129812,143.34,143.26,80.27]
[1642402955440,49.31129812,143.34,143.26,90.7376]
[1642402961044,49.31129812,143.34,143.27,22.9233]
[1642402961246,49.31129812,143.34,143.28,10.12]
[1642402961473,49.31129812,143.34,143.28,10.37]